[Event "1st Chessable Sunway Formentera 2022"]
[Site "Formentera Punta Prima"]
[Date "2022.05.03"]
[Round "5"]
[White "Papadiamandis, Elliot"]
[Black "Neiman, Emmanuel"]
[Result "1-0"]
[ECO "C42"]
[WhiteElo "2373"]
[BlackElo "2248"]
[Annotator "TA"]
[PlyCount "43"]
[EventDate "2022.05.05"]
[EventType "swiss"]
[EventCountry "ESP"]
[SourceTitle "playchess.com"]
[Source "ChessBase"]
[SourceQuality "1"]
[TimeControl "40/5400+30:1800+30"]

{[%evp 13,43,18,18,21,14,16,4,25,26,0,22,28,51,19,29,4,23,14,47,24,112,137,526,505,1058,1058,1139,990,1136,943,1214,1216]} 1. e4 {[%emt 0:00:10]} e5 {[%emt 0:00:08]} 2. Nf3 {[%emt 0:00:34]} Nf6 {[%emt 0:00:08]} 3. Nxe5 {[%emt 0:00:15]} d6 {[%emt 0:00:08]} 4. Nf3 {[%emt 0:00:25]} Nxe4 {[%emt 0:00:08]} 5. Nc3 {[%emt 0:00:35]} Nxc3 {[%emt 0:00:09]} 6. dxc3 {[%emt 0:00:17]} Be7 {[%emt 0:00:08]} 7. Be3 {[%emt 0:01:10]} O-O {[%emt 0:00:08]} 8. Qd2 {[%emt 0:00:19] C42: Petroff Defence: 3 Nxe5 and unusual White 3rd moves.} Nd7 {[%emt 0:00:09]} 9. O-O-O {[%emt 0:00:24]} Nf6 {[%emt 0:00:22]} 10. Bd3 {[%emt 0:00:49] The position is equal.} c5 {[%emt 0:00:11]} 11. h4 {[%emt 0:00:51][%cal Bh2h4,Bh4h5,Bh5h6][%mdl 32]} b5 {[%emt 0:10:04] [#]} 12. h5 $146 {[%emt 0:10:49]} ({Predecessor:} 12. Ng5 Qa5 13. Kb1 c4 14. Be2 Rb8 15. a3 d5 16. Bf3 Rd8 17. Rhe1 Bf5 18. Bf4 {1-0 (29) Tatarinov,D (2320)-Ardila,O (1988) Chess.com INT 2021}) 12... Be6 {[%emt 0:13:46]} 13. h6 {[%emt 0:03:21] [#] Black must now prevent hxg7.} ({Much weaker is} 13. Bxb5 Qa5 14. a4 a6 $15) 13... g6 {[%emt 0:00:06]} 14. Bg5 $36 {[%emt 0:02:10][%mdl 2048] White has some pressure.} ({Don't play} 14. Bxb5 Qa5 15. a4 a6 $17) 14... Rb8 {[%emt 0:04:57]} 15. Rhe1 {[%emt 0:05:01]} Qa5 {[%emt 0:09:50]} 16. a3 {[%emt 0:07:08]} b4 {[%emt 0:13:16]} (16... Rfe8 $11 {keeps the balance.}) 17. cxb4 $16 {[%emt 0:01:04]} Rxb4 {[%emt 0:06:44][%mdl 8192] [#] Black cannot hold the game after this.} (17... cxb4 $16 {is a better chance.} 18. Bc4 Rb7) 18. Qc3 $18 {[%emt 0:04:29] White is clearly winning.} d5 {[%emt 0:04:31]} (18... Ra4 $142 19. Bxf6 Qxc3 20. Bxc3 Rb8 21. Bxg6 Bf8) 19. axb4 {[%emt 0:01:55]} cxb4 {[%emt 0:00:03]} 20. Qd4 {[%emt 0:01:32]} b3 {[%emt 0:00:19]} 21. cxb3 {[%emt 0:04:17]} Bb4 {[%emt 0:02:48]} 22. Kb1 {[%emt 0:03:45] Weighted Error Value: White=0.16 (very precise) /Black=0.70} 1-0

[Event "1st Chessable Sunway Formentera 2022"]
[Site "Formentera Punta Prima"]
[Date "2022.05.03"]
[Round "5"]
[White "Tsatsalashvili, Keti"]
[Black "Chiku-Ratte, Olivier-Kenta"]
[Result "1-0"]
[ECO "E90"]
[WhiteElo "2331"]
[BlackElo "2358"]
[Annotator "TA"]
[PlyCount "77"]
[EventDate "2022.05.05"]
[EventType "swiss"]
[EventCountry "ESP"]
[SourceTitle "playchess.com"]
[Source "ChessBase"]
[SourceQuality "1"]
[TimeControl "40/5400+30:1800+30"]

{[%evp 15,77,0,38,18,27,0,25,36,30,-1,-8,-156,-135,-246,-247,-260,-231,-227,-226,-229,-228,-231,-234,-218,-206,-227,-117,-102,-83,-29,134,130,190,189,183,176,176,172,280,283,278,270,316,300,285,260,232,218,371,325,356,350,328,332,599,631,1162,1152,6311,6403,5289,4277,2160,2072]} 1. d4 {[%emt 0:00:36]} Nf6 {[%emt 0:00:04]} 2. Nf3 {[%emt 0:00:20]} g6 {[%emt 0:00:05]} 3. c4 {[%emt 0:00:09]} Bg7 {[%emt 0:00:05]} 4. Nc3 {[%emt 0:00:08]} d6 {[%emt 0:00:23]} 5. e4 {[%emt 0:00:09]} O-O {[%emt 0:00:09]} 6. h3 {[%emt 0:01:00]} e5 {[%emt 0:00:06]} 7. d5 {[%emt 0:00:05]} Nh5 {[%emt 0:00:04]} 8. Nh2 {[%emt 0:00:26]} Na6 {[%emt 0:15:06]} 9. g3 {[%emt 0:03:54] E90: King's Indian: Classical: Early deviations and 6 h3.} Nc5 {[%emt 0:12:35]} 10. b4 {[%emt 0:02:06]} Na6 {[%emt 0:13:41]} 11. a3 {[%emt 0:00:50] White has an edge.} f5 {[%emt 0:03:25] [#]} 12. exf5 $146 {[%emt 0:19:20]} ({Predecessor:} 12. Be2 Nf6 13. h4 c6 14. h5 cxd5 15. cxd5 Bd7 16. hxg6 hxg6 17. Bg5 Rc8 18. Rc1 {½-½ (44) Vilela de Acuna,J (2415)-Bass,L (2495) Alcobendas 1994}) 12... e4 $1 {[%emt 0:04:49]} (12... Bxf5 13. Be3 $14) 13. Qb3 {[%emt 0:20:33]} (13. Qc2 $1 $11) 13... Qf6 $1 $36 {[%emt 0:09:11][%mdl 2048] White is under strong pressure.} (13... Bxf5 14. Be3 Nf6 15. Rc1 $14) (13... Rxf5 14. Ra2 $16) (13... gxf5 14. Rg1 $11) 14. Bd2 {[%emt 0:05:34]} (14. Bb2 $17 {is a better defense.} e3 15. O-O-O (15. Ng4 $2 exf2+ 16. Nxf2 Nxg3 $19) 15... exf2 16. Ne4 Qxb2+ 17. Qxb2 Bxb2+ 18. Kxb2) 14... e3 $19 {[%emt 0:05:21]} (14... gxf5 15. O-O-O $15) (14... Bxf5 15. Rc1 Bxh3 16. Be3 $17) (14... Qxf5 15. Be3 $14) 15. fxe3 {[%emt 0:00:09]} Nxg3 {[%emt 0:00:16]} 16. Rg1 {[%emt 0:06:58]} Nxf1 {[%emt 0:07:37]} (16... Nxf5 17. O-O-O $17) 17. Nxf1 {[%emt 0:07:11] [#]} Qh4+ {[%emt 0:02:14]} (17... Qxf5 $2 18. O-O-O) 18. Ng3 {[%emt 0:02:02]} Be5 {[%emt 0:01:08]} (18... gxf5 19. O-O-O $16) (18... Qxh3 19. e4 $11) 19. O-O-O {[%emt 0:01:22]} Bxg3 {[%emt 0:03:37] This bishop pair is nice.} 20. fxg6 {[%emt 0:00:42]} hxg6 {[%emt 0:04:00]} ({Black should play} 20... h5 $19 {Threatens to win with ...Bf2.} 21. Ne2 Bf2) 21. Ne2 $17 {[%emt 0:02:48]} Be5 {[%emt 0:00:28]} 22. Rxg6+ {[%emt 0:00:18]} Kh7 $2 {[%emt 0:00:29]} (22... Kf7 $11 23. Qd3 Qxh3) 23. Rdg1 $16 {[%emt 0:03:26][%cal Oe3e4] And now e4! would win. Black is now going downhill.} Bd7 {[%emt 0:13:24]} (23... Bxh3 24. e4 Rf1+ 25. Rxf1 Bxf1 26. Rh6+ Qxh6 27. Bxh6 Kxh6 28. Qe3+ Kh7 29. Ng3 Bxg3 30. Qxg3 Bxc4 31. e5 $18) (23... Bf5 $16 24. R6g5 Kh8) 24. e4 $1 $18 {[%emt 0:07:03]} Rg8 {[%emt 0:02:10]} (24... Qxh3 $2 {leads to mate.} 25. Qxh3+ Bxh3 26. Rh6#) 25. Rh6+ {[%emt 0:03:04]} Qxh6 {[%emt 0:00:02]} 26. Bxh6 {[%emt 0:00:22] Really sharp!} Rxg1+ {[%emt 0:00:10]} (26... Kxh6 $142 27. Qe3+ Kh7) 27. Nxg1 {[%emt 0:00:05]} Kxh6 {[%emt 0:00:03] [#]} 28. Qe3+ $1 {[%emt 0:00:45]} Kh7 {[%emt 0:03:00]} 29. Nf3 {[%emt 0:02:30]} Bg7 {[%emt 0:00:20]} 30. Ng5+ {[%emt 0:00:55]} ({Resist} 30. e5 $6 Bf5 31. Ng5+ Kg6 $18) 30... Kg6 {[%emt 0:00:42]} (30... Kh8 $2 31. Qf3 $18) 31. h4 {[%emt 0:01:25][%mdl 1024] aiming for Qf2. White has strong compensation.} Rf8 {[%emt 0:00:35]} (31... b6 32. Qg3 Be5) 32. Qg1 {[%emt 0:00:52] Ne6+ would kill now.} ({Not} 32. Ne6 Bxe6 33. Qg1+ Bg4 34. Qxg4+ Kh7 $16) 32... Bh6 {[%emt 0:00:28]} 33. Kc2 {[%emt 0:00:36] Hoping for Ne6+.} Kh5 {[%emt 0:00:33]} 34. Ne6 {[%emt 0:02:12]} Rf3 {[%emt 0:00:28]} (34... Ba4+ {was necessary.} 35. Kb1 Rf7) 35. b5 {[%emt 0:00:57] Black must now prevent Qd1. White is clearly winning.} Nc5 {[%emt 0:00:40]} 36. Qd1 {[%emt 0:00:46]} Bxe6 {[%emt 0:00:29]} 37. dxe6 {[%emt 0:01:25]} Nxe6 {[%emt 0:00:31]} 38. Qxf3+ {[%emt 0:00:03]} Kxh4 {[%emt 0:00:04]} 39. Qf6+ {[%emt 0:00:07] Weighted Error Value: White=0.20 (precise) /Black=0.49} 1-0

[Event "1st Chessable Sunway Formentera 2022"]
[Site "Formentera Punta Prima"]
[Date "2022.05.03"]
[Round "5"]
[White "Chkhaidze, Nikoloz"]
[Black "Buivys, Martynas"]
[Result "1-0"]
[ECO "D38"]
[WhiteElo "2301"]
[BlackElo "1806"]
[Annotator "TA"]
[PlyCount "69"]
[EventDate "2022.05.05"]
[EventType "swiss"]
[EventCountry "ESP"]
[SourceTitle "playchess.com"]
[Source "ChessBase"]
[SourceQuality "1"]
[TimeControl "40/5400+30:1800+30"]

{[%evp 12,69,16,8,9,8,17,13,7,7,4,4,6,0,0,0,0,0,0,-25,0,0,3,14,32,12,30,25,36,21,14,23,26,30,43,44,41,40,39,45,80,71,126,128,195,173,332,328,975,977,919,939,856,459,1016,1028,1234,1160,29987,1401]} 1. d4 {[%emt 0:00:02]} d5 {[%emt 0:00:10]} 2. c4 {[%emt 0:00:20]} e6 {[%emt 0:00:13]} 3. Nf3 {[%emt 0:00:03]} Nf6 {[%emt 0:00:07]} 4. Nc3 {[%emt 0:00:01]} Bb4 {[%emt 0:00:22]} 5. cxd5 {[%emt 0:00:04]} exd5 {[%emt 0:00:05]} 6. Bg5 {[%emt 0:00:04]} h6 {[%emt 0:00:23]} 7. Bh4 {[%emt 0:00:03]} O-O {[%emt 0:01:01] 7...Bf5 is the recent fashion. D38: Queen's Gambit Declined: Ragozin Defence (4 Nf3 Bb4).} 8. e3 {[%emt 0:00:02]} Bf5 {[%emt 0:00:31]} 9. Be2 {[%emt 0:00:31]} Nbd7 {[%emt 0:03:58] The position is equal.} 10. Qb3 {[%emt 0:01:27]} Bxc3+ {[%emt 0:05:49]} 11. bxc3 {[%emt 0:00:32]} c5 {[%emt 0:04:45]} 12. O-O {[%emt 0:06:20]} c4 {[%emt 0:03:27]} 13. Qxb7 {[%emt 0:04:36]} Qb6 {[%emt 0:00:08]} 14. Qxb6 {[%emt 0:00:23]} axb6 {[%emt 0:00:02]} 15. Nd2 {[%emt 0:08:01]} Ra3 {[%emt 0:14:23][%mdl 1024] Black has compensation.} 16. Nb1 {[%emt 0:01:44] [#]} Ra5 $146 {[%emt 0:06:52]} ({Predecessor:} 16... Bxb1 17. Rfxb1 g5 18. Bg3 Ne4 19. Bf3 Nxc3 20. Bd6 Nxb1 21. Rxb1 Ra5 22. Bb4 Rfa8 23. Bxa5 Rxa5 {0-1 (57) Keymer,V (2408)-Donchenko,A (2580) Caleta 2018}) 17. f3 {[%emt 0:05:49]} Rfa8 {[%emt 0:06:06]} 18. a3 {[%emt 0:01:52]} g5 {[%emt 0:26:18]} 19. Bg3 {[%emt 0:01:46]} Bxb1 {[%emt 0:03:23]} 20. Rfxb1 {[%emt 0:00:03]} Rxa3 {[%emt 0:00:17]} 21. Rxa3 {[%emt 0:00:02]} Rxa3 {[%emt 0:00:09]} 22. Be1 {[%emt 0:00:10]} Ra2 {[%emt 0:04:17]} 23. Kf1 {[%emt 0:00:13]} Kf8 {[%emt 0:09:55]} 24. e4 {[%emt 0:00:42][%cal Be3e4,Be4e5,Be5f6][%mdl 32]} Ke7 {[%emt 0:01:47]} 25. e5 {[%emt 0:08:31]} ({Not} 25. exd5 Nxd5 26. h3 N7f6 $17) 25... Ne8 {[%emt 0:02:38]} 26. f4 $1 {[%emt 0:00:48]} gxf4 {[%emt 0:02:11]} ({Better is} 26... Nc7) 27. Bh4+ $1 $16 {[%emt 0:00:34]} f6 {[%emt 0:02:19]} (27... Kf8 $16 {was called for.}) 28. Bg4 {[%emt 0:00:54]} Ra6 $2 {[%emt 0:01:46] [#]} (28... Ra3 {keeps fighting.} 29. Re1 Kd8 30. exf6 Ndxf6) 29. Re1 $1 $18 {[%emt 0:00:58] Threatens to win with exf6+.} Nb8 $2 {[%emt 0:01:05]} (29... Kd8 30. exf6 Ndxf6) 30. exf6+ {[%emt 0:00:12]} Kf8 {[%emt 0:00:04]} 31. Bh5 {[%emt 0:06:19][%csl Gh5][%cal Re1e8]} Nd6 {[%emt 0:00:14]} 32. Re5 {[%emt 0:00:27] Strongly threatening Re7.} Nc6 {[%emt 0:00:58]} (32... Ra7 $142 33. Re6 Nf7) 33. Re6 {[%emt 0:00:46]} Ra1+ {[%emt 0:00:37]} 34. Be1 {[%emt 0:01:13]} f3 {[%emt 0:00:33]} 35. gxf3 {[%emt 0:00:23] Weighted Error Value: White=0.20 (precise) /Black=0.50} (35. Rxd6 $142 fxg2+ 36. Kxg2 b5 37. Rxc6 Ra2+ {[#]} 38. Bd2 $1 {[%mdl 512]} Ra8 39. Bxh6+ Kg8 40. Bg6) 1-0

[Event "1st Chessable Sunway Formentera 2022"]
[Site "Formentera Punta Prima"]
[Date "2022.05.03"]
[Round "5"]
[White "Dukic, Zachary"]
[Black "Yankelevich, Lev"]
[Result "1/2-1/2"]
[ECO "C45"]
[WhiteElo "2243"]
[BlackElo "2473"]
[Annotator "TA"]
[PlyCount "68"]
[EventDate "2022.05.05"]
[EventType "swiss"]
[EventCountry "ESP"]
[SourceTitle "playchess.com"]
[Source "ChessBase"]
[SourceQuality "1"]
[TimeControl "40/5400+30:1800+30"]

{[%evp 16,68,0,0,9,-32,-38,-43,-47,-50,-50,-63,10,1,0,0,7,14,14,0,0,0,0,0,0,0,0,0,0,-21,-21,-16,-19,-24,-26,-26,-19,-24,0,0,0,0,0,0,4,5,5,5,5,5,5,5,5,5,5]} 1. e4 {[%emt 0:00:03]} e5 {[%emt 0:00:06]} 2. Nf3 {[%emt 0:00:05]} Nc6 {[%emt 0:00:03]} 3. d4 {[%emt 0:00:06]} exd4 {[%emt 0:00:08]} 4. Nxd4 {[%emt 0:00:05]} Nf6 {[%emt 0:00:08][%cal Bg8f6,Bf6d5,Bd5f4][%mdl 32]} 5. Nxc6 {[%emt 0:00:05]} bxc6 {[%emt 0:00:07]} 6. e5 {[%emt 0:00:04]} Qe7 {[%emt 0:00:07]} 7. Qe2 {[%emt 0:00:05]} Nd5 {[%emt 0:00:05]} 8. c4 {[%emt 0:00:05]} Ba6 {[%emt 0:00:54]} 9. Nd2 {[%emt 0:00:06]} f6 {[%emt 0:00:43] C45: Scotch Game.} 10. b3 {[%emt 0:13:35]} Nf4 {[%emt 0:08:03] [#]} 11. Qe3 $146 {[%emt 0:03:53]} ({Predecessor:} 11. exf6 Qxe2+ 12. Bxe2 gxf6 13. Bf1 O-O-O 14. g3 Re8+ 15. Kd1 Ne6 16. Bb2 Bc5 17. Ne4 {½-½ (59) Reinaldo Castineira,R (2499)-Garbisu de Goni,U (2415) Pamplona 2015}) 11... Qxe5 {[%emt 0:08:06] Black is slightly better.} 12. Qxe5+ {[%emt 0:00:19]} fxe5 {[%emt 0:00:09]} 13. Bb2 {[%emt 0:01:44]} O-O-O {[%emt 0:05:28]} ({Black should play} 13... Bb4 $15) 14. O-O-O $11 {[%emt 0:02:09]} d6 {[%emt 0:04:27]} 15. g3 {[%emt 0:03:40]} Ng6 {[%emt 0:00:10]} 16. h4 {[%emt 0:01:53][%cal Bh2h4,Bh4h5][%mdl 32]} c5 {[%emt 0:05:57]} 17. h5 {[%emt 0:17:55][%mdl 1024] White has compensation.} Ne7 {[%emt 0:00:05]} 18. f4 {[%emt 0:00:16]} Bb7 {[%emt 0:01:41] Inhibits Nf3.} 19. Bh3+ {[%emt 0:02:03]} Kb8 {[%emt 0:00:05]} 20. Rhe1 {[%emt 0:00:14]} Nc6 {[%emt 0:01:01]} 21. fxe5 {[%emt 0:22:26]} Nxe5 {[%emt 0:01:22] Threatens to win with ...Nd3+.} 22. Bxe5 {[%emt 0:04:49]} (22. Ne4 $5 {[%cal Rb2e5]}) 22... dxe5 {[%emt 0:00:03]} 23. Rxe5 {[%emt 0:02:35]} Bd6 {[%emt 0:01:09]} 24. Re3 {[%emt 0:04:46]} g6 {[%emt 0:01:11]} 25. Ne4 {[%emt 0:02:32]} Rhe8 {[%emt 0:19:39]} 26. Rde1 {[%emt 0:00:08]} Bf8 {[%emt 0:04:34] [#] And now ...Bh6 would win. This bishop pair is nice.} 27. Kc2 {[%emt 0:00:32] The position is equal.} Bh6 {[%emt 0:17:22]} 28. R3e2 {[%emt 0:01:25]} Bxe4+ {[%emt 0:04:24]} 29. Rxe4 {[%emt 0:00:08]} Rd2+ {[%emt 0:00:12]} 30. Kb1 $1 {[%emt 0:00:17]} Rxe4 {[%emt 0:02:18]} 31. Rxe4 {[%emt 0:00:08]} Kb7 {[%emt 0:02:51]} 32. hxg6 {[%emt 0:00:45]} hxg6 {[%emt 0:00:03]} 33. Re6 {[%emt 0:01:25]} Rd6 {[%emt 0:04:15]} 34. Rxd6 {[%emt 0:00:15]} cxd6 {[%emt 0:00:07] Weighted Error Value: White=0.03 (flawless) /Black=0.08 (flawless)} 1/2-1/2

[Event "1st Chessable Sunway Formentera 2022"]
[Site "Formentera Punta Prima"]
[Date "2022.05.03"]
[Round "5"]
[White "Grutter, Tim"]
[Black "Narciso Dublan, Marc"]
[Result "0-1"]
[ECO "B11"]
[WhiteElo "2241"]
[BlackElo "2464"]
[Annotator "TA"]
[PlyCount "82"]
[EventDate "2022.05.05"]
[EventType "swiss"]
[EventCountry "ESP"]
[SourceTitle "playchess.com"]
[Source "ChessBase"]
[SourceQuality "1"]
[TimeControl "40/5400+30:1800+30"]

{[%evp 9,82,12,18,9,16,14,28,-27,-16,-16,82,45,44,27,41,-75,-72,-83,-87,-109,-89,-127,-84,-144,-141,-134,-130,-218,-164,-187,-196,-226,-222,-300,-311,-383,-333,-440,-465,-672,-672,-645,-656,-1055,-1037,-1047,-1034,-992,-920,-1347,-1306,-29986,-29987,-29989,-29990,-29990,-29991,-29991,-29992,-29992,-29990,-29990,-29991,-29991,-29992,-29992,-29993,-29993,-29994,-29994,-29995,-29995,-29996,-29996,-29997]} 1. e4 {[%emt 0:00:03]} c6 {[%emt 0:00:11]} 2. Nc3 {[%emt 0:00:28]} d5 {[%emt 0:00:10]} 3. Nf3 {[%emt 0:00:05]} Nf6 {[%emt 0:00:13]} 4. e5 {[%emt 0:00:04]} Ne4 {[%emt 0:00:09]} 5. Ne2 {[%emt 0:00:12]} Qb6 {[%emt 0:00:10][%csl Ge4][%cal Rb6f2]} 6. d4 $1 {[%emt 0:00:08] B11: Caro-Kann: Two Knights Variation.} e6 $1 {[%emt 0:00:08]} 7. Ng3 {[%emt 0:00:27] 7.Ng3 scores better than 7.Nfg1.} c5 {[%emt 0:00:12]} 8. Bd3 {[%emt 0:00:26]} (8. c3 $142) 8... Nxg3 $1 $11 {[%emt 0:00:14]} 9. fxg3 {[%emt 0:00:06]} Bd7 {[%emt 0:00:13]} (9... cxd4 $11 10. O-O Nc6) 10. O-O {[%emt 0:04:51]} (10. Ng5 {seems wilder.} c4 11. O-O cxd3 12. Nxf7 dxc2 13. Qxc2 Qxd4+ 14. Kh1) 10... h6 {[%emt 0:00:05] Inhibits Ng5.} 11. Nh4 {[%emt 0:08:50] Strongly threatening Qh5.} Nc6 $1 {[%emt 0:00:15][%cal Bb8c6,Bc6e5,Be5f3][%mdl 32] [#] ...g5 is the strong threat.} 12. Qh5 {[%emt 0:11:41]} (12. Bg6 $1 $14 {keeps the upper hand.} fxg6 13. Nxg6) 12... O-O-O $1 $17 {[%emt 0:02:43] Black continues to play with concentration.} 13. dxc5 {[%emt 0:09:15]} ({Reject} 13. Rxf7 c4 14. Bg6 Qxd4+ 15. Kh1 Bc5) 13... Bxc5+ {[%emt 0:05:34]} 14. Kh1 {[%emt 0:00:55] [#]} g5 $146 {[%emt 0:02:45]} ({Predecessor:} 14... Bd4 15. c3 Bxe5 16. Qxf7 Rhf8 17. Qxf8 Rxf8 18. Rxf8+ Kc7 19. Rf1 Bd6 20. b3 g5 {1-0 (45) Majdan,J (2325)-Kubicka,A (2259) Ostrow Wielkopolski 2020}) 15. Nf3 {[%emt 0:01:36] [#]} Rdg8 $1 {[%emt 0:01:27]} 16. Ne1 {[%emt 0:18:54]} (16. Qxf7 $142 g4 17. Nd2) 16... Nxe5 {[%emt 0:02:17]} 17. Qe2 {[%emt 0:00:20]} Qd6 {[%emt 0:07:17] 0x0.001ddff0a66adp-1022s more active pieces. The white rooks are badly placed.} 18. a3 {[%emt 0:04:58]} (18. Nf3 $17 Nxf3 19. Rxf3) 18... Kb8 {[%emt 0:02:41]} 19. Nf3 {[%emt 0:11:34] [#]} Nxf3 {[%emt 0:02:50]} 20. Qxf3 {[%emt 0:02:17]} f5 {[%emt 0:03:41]} 21. c4 {[%emt 0:01:38]} h5 {[%emt 0:22:20][%cal Bh6h5,Bh5h4][%mdl 32]} 22. Be3 {[%emt 0:07:02]} dxc4 {[%emt 0:07:54]} 23. Bxc4 {[%emt 0:03:04] Threatens to win with Rad1.} Bc6 {[%emt 0:00:26]} 24. Qf2 {[%emt 0:01:24]} (24. Rad1 $142 Bxf3 25. Rxd6 Bxg2+ 26. Kxg2 Bxd6 27. Rd1) 24... Bxe3 $19 {[%emt 0:00:12]} 25. Qxe3 {[%emt 0:00:05]} h4 {[%emt 0:00:40] White must now prevent ...hxg3.} 26. Rfd1 {[%emt 0:04:51]} Qc7 {[%emt 0:02:59] aiming for ...hxg3.} 27. Kg1 {[%emt 0:00:53]} f4 {[%emt 0:01:01]} 28. Qd4 {[%emt 0:05:34]} hxg3 {[%emt 0:01:25] Hoping for ...Rd8.} 29. hxg3 {[%emt 0:00:56]} fxg3 {[%emt 0:06:22] And now ...Rh2 would win.} 30. Bxe6 {[%emt 0:01:00]} Rd8 {[%emt 0:15:01] Black mates.} 31. Qe3 {[%emt 0:00:17] [#]} Rh1+ $3 {[%emt 0:02:40][%mdl 512]} 32. Kxh1 {[%emt 0:00:05]} Qh7+ {[%emt 0:00:04]} 33. Kg1 {[%emt 0:00:25]} Qh2+ {[%emt 0:00:08]} 34. Kf1 {[%emt 0:00:04]} Qxg2+ {[%emt 0:01:05]} 35. Ke1 {[%emt 0:00:08]} Qh1+ {[%emt 0:00:07]} 36. Ke2 {[%emt 0:00:07]} Bb5+ {[%emt 0:00:07]} 37. Rd3 {[%emt 0:00:26]} Bxd3+ {[%emt 0:00:14]} 38. Kd2 {[%emt 0:00:56]} Qh2+ {[%emt 0:02:15]} 39. Kc3 {[%emt 0:01:30]} Qc2+ {[%emt 0:00:12]} 40. Kb4 {[%emt 0:00:00]} Qxb2+ {[%emt 0:00:00]} 41. Bb3 {[%emt 0:00:13]} Rd4+ {[%emt 0:00:44] Weighted Error Value: White=0.87/Black=0.07 (flawless)} 0-1

[Event "1st Chessable Sunway Formentera 2022"]
[Site "Formentera Punta Prima"]
[Date "2022.05.03"]
[Round "5"]
[White "Bernard, Jacques"]
[Black "Perkampus, Laurin"]
[Result "1-0"]
[ECO "B13"]
[WhiteElo "2122"]
[BlackElo "2061"]
[Annotator "TA"]
[PlyCount "89"]
[EventDate "2022.05.05"]
[EventType "swiss"]
[EventCountry "ESP"]
[SourceTitle "playchess.com"]
[Source "ChessBase"]
[SourceQuality "1"]
[TimeControl "40/5400+30:1800+30"]

{[%evp 13,89,6,0,-32,-36,-41,-3,-35,-32,-45,-40,-33,-33,-35,10,7,135,135,135,150,379,351,358,359,343,348,355,347,325,320,330,317,313,315,343,325,378,251,250,252,247,207,245,210,209,197,362,359,362,362,353,321,564,538,584,533,956,902,1073,1030,1179,1137,1167,1009,29966,29969,29953,29945,5708,5108,29975,29977,29977,29977,29979,29979,29964,29953]} 1. e4 {[%emt 0:00:07]} c6 {[%emt 0:00:07]} 2. d4 {[%emt 0:00:28]} d5 {[%emt 0:00:22]} 3. exd5 {[%emt 0:01:32]} cxd5 {[%emt 0:00:08]} 4. c4 {[%emt 0:00:04]} Nf6 {[%emt 0:00:49]} 5. Nc3 {[%emt 0:00:26]} Nc6 {[%emt 0:00:29]} 6. Bg5 {[%emt 0:03:04]} Be6 {[%emt 0:06:57]} 7. Bxf6 {[%emt 0:09:53]} exf6 {[%emt 0:01:33]} 8. Nf3 {[%emt 0:00:38] B13: Caro-Kann: Exchange Variation and Panov-Botvinnik Attack.} Bb4 {[%emt 0:16:50]} (8... dxc4 $2 9. d5 $18) 9. c5 {[%emt 0:06:00]} Qa5 {[%emt 0:11:34]} 10. Qd2 {[%emt 0:13:51] [#] The position is equal.} b6 $146 {[%emt 0:10:28]} ({Predecessor:} 10... O-O 11. Be2 b6 12. cxb6 Qxb6 13. O-O Rac8 14. a3 Bxc3 15. bxc3 Na5 16. Rab1 Qd6 {½-½ (36) Agdestein,S (2586)-Kirszenberg,M (2233) Calvi 2005}) 11. Bb5 {[%emt 0:08:48]} Rc8 {[%emt 0:07:00]} 12. Rc1 {[%emt 0:11:39]} bxc5 {[%emt 0:19:40]} 13. dxc5 {[%emt 0:05:45] Nd4 is the strong threat.} Bxc5 {[%emt 0:05:48]} (13... Bxc3 $5 14. Bxc6+ Rxc6 15. Rxc3 Rxc5 $15) 14. a3 $1 {[%emt 0:02:46] Hoping for b4.} Qb6 {[%emt 0:04:23]} (14... d4 $1 $11 15. Bxc6+ (15. Nxd4 Bxd4 16. Qxd4 O-O $11) 15... Rxc6) 15. b4 $36 {[%emt 0:01:16][%mdl 2048] White is really pushing.} Be7 {[%emt 0:02:36]} 16. Nd4 $1 {[%emt 0:01:12] And now Na4 would win. White is more active.} Bd7 $2 {[%emt 0:02:23] [#] Black cannot hold the game after this.} (16... O-O $16 17. Nxc6 Rxc6 18. Bxc6 Qxc6) 17. Nxd5 $1 {[%emt 0:01:55]} Qxd4 {[%emt 0:06:05]} 18. Qxd4 {[%emt 0:03:20]} Nxd4 {[%emt 0:00:07]} 19. Rxc8+ {[%emt 0:00:36]} Bd8 {[%emt 0:00:01]} 20. Bxd7+ {[%emt 0:02:36]} Kxd7 {[%emt 0:00:05]} 21. Rc4 {[%emt 0:03:58]} Re8+ {[%emt 0:01:29]} 22. Ne3 {[%emt 0:04:20]} Bb6 {[%emt 0:00:51]} 23. Kd2 {[%emt 0:08:11]} Nb5 {[%emt 0:00:25]} 24. Rd1 {[%emt 0:03:39]} Nxa3 {[%emt 0:01:31]} 25. Ke2+ {[%emt 0:01:39]} Ke7 {[%emt 0:00:11]} 26. Re4+ {[%emt 0:00:07]} Kf8 {[%emt 0:00:07]} 27. Rxe8+ {[%emt 0:00:02]} Kxe8 $18 {[%emt 0:00:01][%mdl 4096] Endgame KRN-KBN} 28. Nd5 {[%emt 0:01:25]} Nb5 {[%emt 0:00:22]} 29. f3 {[%emt 0:02:17]} Bd4 $2 {[%emt 0:01:33] [#]} (29... Bd8 {was called for.} 30. g4 Nc7 31. Nxc7+ Bxc7) 30. Nc7+ $1 {[%emt 0:00:21][%mdl 512]} Nxc7 {[%emt 0:00:13]} 31. Rxd4 {[%emt 0:00:04] KR-KN} Ke7 {[%emt 0:00:18]} 32. Kd2 {[%emt 0:03:10]} g6 $2 {[%emt 0:01:00]} (32... Nb5) 33. Kc2 {[%emt 0:00:00]} Ke6 {[%emt 0:00:51]} 34. Kb3 {[%emt 0:00:00]} h5 {[%emt 0:00:39]} 35. Kc4 {[%emt 0:00:23]} Ke7 {[%emt 0:00:27]} 36. Rd2 {[%emt 0:00:32]} Ke6 {[%emt 0:00:34]} 37. Kc5 {[%emt 0:00:55] White threatens Kc6 and mate.} Na6+ {[%emt 0:00:47]} 38. Kb5 {[%emt 0:00:22]} Nc7+ {[%emt 0:00:06]} 39. Kc6 {[%emt 0:00:24]} Na6 {[%emt 0:00:13]} 40. b5 {[%emt 0:00:00]} Nb4+ {[%emt 0:00:00]} 41. Kb7 {[%emt 0:02:21]} a5 {[%emt 0:01:24]} 42. bxa6 {[%emt 0:02:01] White mates.} Nxa6 {[%emt 0:00:22]} 43. Kxa6 {[%emt 0:00:06]} g5 {[%emt 0:00:12]} 44. Kb5 {[%emt 0:00:44]} Kf5 {[%emt 0:00:12]} 45. Rd4 {[%emt 0:01:36] Weighted Error Value: White=0.09 (flawless) /Black=0.90} 1-0